fUSD/lending_fUSD_20260122
["ID","MTS","AMOUNT","RATE_DAILY","PERIOD"]
[403025234,1769080248486,-432.688471,0.00038978,120]
[403025235,1769080248495,-151.0,0.00038978,120]
[403025236,1769080248506,-432.688471,0.00038978,120]
[403025237,1769080248516,-193.903862,0.00038978,120]
[403025238,1769080248525,-193.903862,0.00038978,120]
[403025239,1769080248534,-193.903862,0.00038978,120]
[403025240,1769080248544,-193.903862,0.00038978,120]
[403025241,1769080248557,-151.0,0.00038978,120]
[403025242,1769080248567,-151.0,0.00038978,120]
[403025243,1769080248576,-850.64719779,0.00038978,2]
[403025244,1769080248586,-304.29258002,0.00038978,2]
[403025245,1769080248594,-579.60656996,0.00038978,2]
[403025246,1769080248604,-305.467583,0.00038978,2]
[403025247,1769080248613,-300.0,0.00038978,2]
[403025248,1769080248622,-456.09127569,0.00038978,2]
[403025249,1769080248631,-1075.69065222,0.00038978,2]
[403025250,1769080248640,-302.27924024,0.00038978,2]
[403025251,1769080248649,-369.21511102,0.00038978,2]
[403025252,1769080248659,-515.54603305,0.00038978,2]
[403025253,1769080248668,-304.44072025,0.00038978,2]
[403025254,1769080248677,-850.64719779,0.00038978,2]
[403025255,1769080248686,-304.29258002,0.00038978,2]
[403025256,1769080248697,-579.60656996,0.00038978,2]
[403025257,1769080248706,-305.467583,0.00038978,2]
[403025258,1769080248715,-300.0,0.00038978,2]
[403025259,1769080248724,-456.09127569,0.00038978,2]
[403025260,1769080248733,-1075.69065222,0.00038978,2]
[403025261,1769080248742,-369.21511102,0.00038978,2]
[403025262,1769080248751,-515.54603305,0.00038978,2]
[403025263,1769080248761,-304.44072025,0.00038978,2]
[403025264,1769080248770,-850.64719779,0.00038978,2]
[403025265,1769080248779,-304.29258002,0.00038978,2]
[403025266,1769080248788,-305.467583,0.00038978,2]
[403025267,1769080248797,-456.09127569,0.00038978,2]
[403025268,1769080248808,-1075.69065222,0.00038978,2]
[403025269,1769080248817,-369.21511102,0.00038978,2]
[403025270,1769080248826,-515.54603305,0.00038978,2]
[403025271,1769080248835,-304.44072025,0.00038978,2]
[403025272,1769080248845,-850.64719779,0.00038978,2]
[403025273,1769080248855,-304.29258002,0.00038978,2]
[403025274,1769080248865,-305.467583,0.00038978,2]
[403025275,1769080248875,-456.09127569,0.00038978,2]
[403025276,1769080248884,-1075.69065222,0.00038978,2]
[403025277,1769080248893,-369.21511102,0.00038978,2]
[403025278,1769080248902,-515.54603305,0.00038978,2]
[403025279,1769080248911,-304.44072025,0.00038978,2]
[403025280,1769080248920,-850.64719779,0.00038978,2]
[403025281,1769080248929,-304.29258002,0.00038978,2]
[403025282,1769080248939,-305.467583,0.00038978,2]
[403025283,1769080248948,-456.09127569,0.00038978,2]
[403025284,1769080248957,-1075.69065222,0.00038978,2]
[403025285,1769080248966,-369.21511102,0.00038978,2]
[403025286,1769080248976,-515.54603305,0.00038978,2]
[403025287,1769080248986,-304.44072025,0.00038978,2]
[403025288,1769080248995,-850.64719779,0.00038978,2]
[403025289,1769080249004,-304.29258002,0.00038978,2]
[403025290,1769080249013,-305.467583,0.00038978,2]
[403025291,1769080249022,-456.09127569,0.00038978,2]
[403025292,1769080249031,-1075.69065222,0.00038978,2]
[403025293,1769080249040,-369.21511102,0.00038978,2]
[403025294,1769080249049,-515.54603305,0.00038978,2]
[403025295,1769080249058,-304.44072025,0.00038978,2]
[403025296,1769080249067,-850.64719779,0.00038978,2]
[403025297,1769080249076,-304.29258002,0.00038978,2]
[403025298,1769080249085,-305.467583,0.00038978,2]
[403025299,1769080249094,-456.09127569,0.00038978,2]
[403025300,1769080249104,-1075.69065222,0.00038978,2]
[403025301,1769080249112,-369.21511102,0.00038978,2]
[403025302,1769080249121,-515.54603305,0.00038978,2]
[403025303,1769080249130,-304.44072025,0.00038978,2]
[403025304,1769080249139,-304.29258002,0.00038978,2]
[403025305,1769080249148,-850.64719779,0.00038978,2]
[403025306,1769080249157,-305.467583,0.00038978,2]
[403025307,1769080249167,-456.09127569,0.00038978,2]
[403025308,1769080249176,-1075.69065222,0.00038978,2]
[403025309,1769080249185,-369.21511102,0.00038978,2]
[403025310,1769080249194,-515.54603305,0.00038978,2]
[403025311,1769080249203,-304.44072025,0.00038978,2]
[403025312,1769080249212,-850.64719779,0.00038978,2]
[403025313,1769080249221,-304.29258002,0.00038978,2]
[403025314,1769080249231,-305.467583,0.00038978,2]
[403025315,1769080249240,-456.09127569,0.00038978,2]
[403025316,1769080249249,-1075.69065222,0.00038978,2]
[403025317,1769080249258,-369.21511102,0.00038978,2]
[403025318,1769080249267,-515.54603305,0.00038978,2]
[403025319,1769080249276,-304.44072025,0.00038978,2]
[403025320,1769080249286,-850.64719779,0.00038978,2]
[403025321,1769080249295,-305.285085,0.00038978,2]
[403025322,1769080249304,-305.467583,0.00038978,2]
[403025323,1769080249313,-456.09127569,0.00038978,2]
[403025324,1769080249322,-1075.69065222,0.00038978,2]
[403025325,1769080249331,-369.21511102,0.00038978,2]
[403025326,1769080249340,-515.54603305,0.00038978,2]
[403025327,1769080249349,-305.47334731,0.00038978,2]
[403025328,1769080249358,-850.64719779,0.00038978,2]
[403025329,1769080249367,-306.38140736,0.00038978,2]
[403025330,1769080249377,-456.09127569,0.00038978,2]
[403025331,1769080249386,-1075.69065222,0.00038978,2]
[403025332,1769080249395,-369.21511102,0.00038978,2]
[403025333,1769080249404,-515.54603305,0.00038978,2]
[403025334,1769080249413,-1136.44596828,0.00038978,2]
[403025335,1769080249425,-405.15935909,0.00038978,2]
[403025336,1769080249435,-1075.69065222,0.00038978,2]
[403025337,1769080249444,-493.35877104,0.00038978,2]
[403025338,1769080249453,-517.1326415,0.00038978,2]
[403025339,1769080249462,-361.68665702,0.00038978,2]
[403025340,1769080249473,-3900.0,0.00039,4]
[403025341,1769080249482,-23382.21,0.000391,120]
[403025342,1769080249492,-116275.57,0.000393,2]
[403025343,1769080249502,-35881.66,0.000394,30]
[403025344,1769080249511,-151.0,0.000394,120]
[403025345,1769080249520,-151.0,0.000394,120]
[403025346,1769080249530,-151.0,0.000394,120]
[403025347,1769080249539,-162.73600609,0.00039644,2]
[403025348,1769080249548,-506.0,0.00039733,21]
[403025349,1769080249558,-200.0,0.00039818,6]
[403025350,1769080249566,-200.0,0.00039818,6]
[403025351,1769080249575,-200.0,0.00039818,6]
[403025352,1769080249584,-200.0,0.00039818,6]
[403025353,1769080249594,-200.0,0.00039818,6]
[403025354,1769080249603,-200.0,0.00039818,6]
[403025355,1769080249612,-200.0,0.00039819,6]
[403025356,1769080249622,-200.0,0.00039826,6]
[403025357,1769080249631,-200.0,0.00039826,6]
[403025358,1769080249640,-1684.75450612,0.0003988,120]
[403025359,1769080250063,-212.48305,0.00036986,31]
[403025360,1769080250073,-2274.68534358,0.0003988,120]
[403025361,1769080250082,-18.87503941,0.0004,120]
[403025362,1769080250132,-151.0,0.00036986,31]
[403025363,1769080250141,-132.12496059,0.0004,120]
[403025364,1769080250150,-160.0,0.0004,8]
[403025365,1769080250159,-151.0,0.0004,120]
[403025366,1769080250168,-282.6516962,0.0004,10]
[403025367,1769080250653,-151.0,0.00036986,31]
[403025368,1769080250662,-182.275893,0.00036986,31]
[403025369,1769080250671,-303.028913,0.00036986,31]
[403025370,1769080250681,-4756.63843112,0.0004,10]
[403025371,1769080250690,-366.77010849,0.0004,120]
[403025372,1769080250699,-250.0,0.0004,120]
[403025373,1769080250709,-4940.21,0.0004,120]
[403025374,1769080250718,-400.43280856,0.0004,120]
[403025375,1769080250727,-10336.49307922,0.0004,120]
[403025376,1769080250737,-1898.0,0.0004,2]
[403025377,1769080250746,-10925.0742038,0.0004,2]
[403025378,1769080250755,-256.93775894,0.0004,30]
[403025379,1769080250764,-2939.0,0.0004,30]
[403025380,1769080250773,-393.793466,0.0004,90]
[403025381,1769080250783,-20002.0,0.0004,90]
[403025382,1769080250792,-93177.119225,0.0004,30]
[403025383,1769080250802,-151.0,0.0004,120]
[403025384,1769080250811,-151.0,0.0004,120]
[403025385,1769080250820,-410.706446,0.0004,120]
[403025386,1769080250829,-410.706446,0.0004,120]
[403025387,1769080250839,-410.706446,0.0004,120]
[403025388,1769080250848,-410.7064387,0.0004,120]
[403025389,1769080250857,-230.0,0.0004,10]
[403025390,1769080250866,-253.0,0.0004,30]
[403025391,1769080250875,-307.28033528,0.0004,120]
[403025392,1769080250884,-151.0,0.0004,120]
[403025393,1769080250893,-159.025347,0.0004,120]
[403025394,1769080250903,-159.025347,0.0004,120]
[403025395,1769080250911,-378.585921,0.0004,120]
[403025396,1769080250920,-159.025347,0.0004,120]
[403025397,1769080250930,-378.585921,0.0004,120]
[403025398,1769080250939,-159.02535,0.0004,120]
[403025399,1769080250948,-378.585921,0.0004,120]
[403025400,1769080250957,-378.585913,0.0004,120]
[403025401,1769080250966,-1585.889479,0.0004,120]
[403025402,1769080250975,-1585.889479,0.0004,120]
[403025403,1769080250986,-1585.889479,0.0004,120]
[403025404,1769080250995,-1585.889483,0.0004,120]
[403025405,1769080251004,-151.0,0.0004,120]
[403025406,1769080251013,-151.0,0.0004,120]
[403025407,1769080251022,-151.0,0.0004,120]
[403025408,1769080251031,-151.0,0.0004,120]
[403025409,1769080251040,-151.0,0.0004,120]
[403025410,1769080251049,-459.161951,0.0004,28]
[403025411,1769080251059,-459.161951,0.0004,28]
[403025412,1769080251068,-459.161951,0.0004,28]
[403025413,1769080251078,-459.161955,0.0004,28]
[403025414,1769080251086,-151.0,0.0004,120]
[403025415,1769080251095,-151.0,0.0004,120]
[403025416,1769080251105,-151.0,0.0004,120]
[403025417,1769080251114,-263.418769,0.0004,120]
[403025418,1769080251123,-263.418769,0.0004,120]
[403025419,1769080251132,-263.418769,0.0004,120]
[403025420,1769080251141,-263.418775,0.0004,120]
[403025421,1769080251151,-151.0,0.0004,120]
[403025422,1769080251160,-151.0,0.0004,120]
[403025423,1769080251170,-151.0,0.0004,90]
[403025424,1769080251179,-151.0,0.0004,120]
[403025425,1769080251188,-151.0,0.0004,90]
[403025426,1769080251197,-212.48305,0.0004,120]
[403025427,1769080251206,-212.48305,0.0004,120]
[403025428,1769080251215,-212.48305,0.0004,120]
[403025429,1769080251225,-151.0,0.0004,120]
[403025430,1769080251234,-212.483053,0.0004,120]
[403025431,1769080251243,-200.0,0.00040042,7]
[403025432,1769080251252,-3465.0,0.00040177,2]
[403025433,1769080251261,-1071.3,0.00040177,2]
[403025434,1769080251271,-979.185,0.00040281,57]
[403025435,1769080251280,-150.33,0.00040487,120]
[403025436,1769080251289,-273.08953391,0.000405,120]
[403025437,1769080251299,-151.0,0.000406,120]
[403025438,1769080251308,-151.0,0.000407,120]
[403025439,1769080251317,-35881.66,0.000409,30]
[403025440,1769080251327,-1800.0,0.000409,14]
[403025441,1769080251336,-3179.8,0.00040905,120]
[403025442,1769080251345,-210.0,0.0004093,30]
[403025443,1769080251355,-9207.94484483,0.00040995,15]
[403025444,1769080251364,-446.81,0.00041,120]
[403025445,1769080251374,-1000.0,0.00041,120]
[403025446,1769080251384,-253.0,0.00041,34]
[403025447,1769080251393,-1359.4,0.00041041,120]
[403025448,1769080251403,-33466.3203469,0.00041059,2]
[403025449,1769080251413,-277.8612025,0.00041068,120]
[403025450,1769080251425,-406.2722405,0.00041068,120]
[403025451,1769080251435,-258.75,0.00041068,120]
[403025452,1769080251444,-409.05,0.00041068,120]
[403025453,1769080251454,-300.0,0.00041068,22]
[403025454,1769080251463,-150.0,0.00041068,30]
[403025455,1769080251473,-150.0,0.00041068,2]
[403025456,1769080251483,-2567.0,0.00041092,2]
[403025457,1769080251494,-1867.27240606,0.00041095,27]
[403025458,1769080251504,-500.0,0.00041095,120]
[403025459,1769080251514,-1000.0,0.00041095,2]
[403025460,1769080251523,-18930.95840703,0.00041095,15]
[403025461,1769080251532,-500.0,0.00041095,60]
[403025462,1769080251542,-443.02536193,0.00041095,60]
[403025463,1769080251551,-500.0,0.00041095,2]
[403025464,1769080251560,-12714.26314041,0.00041095,15]
[403025465,1769080251570,-500.0,0.00041095,60]
[403025466,1769080251579,-500.0,0.00041095,60]
[403025467,1769080251588,-500.0,0.00041095,60]
[403025468,1769080251597,-500.0,0.00041095,60]
[403025469,1769080251607,-500.0,0.00041095,7]
[403025470,1769080251617,-500.0,0.00041095,7]
[403025471,1769080251627,-500.0,0.00041095,60]
[403025472,1769080251637,-500.0,0.00041095,60]
[403025473,1769080251646,-546.97829053,0.00041095,60]
[403025474,1769080251656,-500.0,0.00041095,60]
[403025475,1769080251666,-500.0,0.00041095,60]
[403025476,1769080251675,-500.0,0.00041095,60]
[403025477,1769080251685,-502.01483287,0.00041095,60]
[403025478,1769080251695,-500.0,0.00041095,60]
[403025479,1769080251706,-502.64261489,0.00041095,60]
[403025480,1769080251715,-500.0,0.00041095,60]
[403025481,1769080251725,-500.0,0.00041095,60]
[403025482,1769080251734,-500.0,0.00041095,60]
[403025483,1769080251744,-521.27,0.00041095,60]
[403025484,1769080251753,-500.0,0.00041095,60]
[403025485,1769080251763,-510.66584838,0.00041095,60]
[403025486,1769080251773,-575.47,0.00041095,60]
[403025487,1769080251782,-855.22,0.00041095,60]
[403025488,1769080251792,-521.08193511,0.00041095,60]
[403025489,1769080251802,-500.0,0.00041095,60]
[403025490,1769080251812,-500.0,0.00041095,60]
[403025491,1769080251821,-500.0,0.00041095,60]
[403025492,1769080251831,-509.94200797,0.00041095,60]
[403025493,1769080251841,-500.0,0.00041095,60]
[403025494,1769080251850,-507.45509381,0.00041095,60]
[403025495,1769080251860,-500.0,0.00041095,60]
[403025496,1769080251870,-500.0,0.00041095,60]
[403025497,1769080251879,-500.0,0.00041095,60]
[403025498,1769080251889,-500.0,0.00041095,60]
[403025499,1769080251898,-505.67730151,0.00041095,60]
[403025500,1769080251909,-500.0,0.00041095,60]
[403025501,1769080251919,-500.0,0.00041095,60]
[403025502,1769080251929,-500.0,0.00041095,60]
[403025503,1769080251939,-518.74676745,0.00041095,60]
[403025504,1769080251948,-504.10833983,0.00041095,14]
[403025505,1769080251957,-500.0,0.00041095,60]
[403025506,1769080251967,-500.0,0.00041095,60]
[403025507,1769080251977,-500.0,0.00041095,60]
[403025508,1769080251986,-500.0,0.00041095,60]
[403025509,1769080251995,-505.66448402,0.00041095,60]
[403025510,1769080252005,-500.0,0.00041095,60]
[403025511,1769080252014,-506.50011547,0.00041095,60]
[403025512,1769080252023,-500.0,0.00041095,60]
[403025513,1769080252032,-500.0,0.00041095,60]
[403025514,1769080252042,-500.0,0.00041095,60]
[403025515,1769080252052,-500.0,0.00041095,60]
[403025516,1769080252061,-500.0,0.00041095,60]
[403025517,1769080252070,-500.0,0.00041095,60]
[403025518,1769080252080,-500.0,0.00041095,60]
[403025519,1769080252090,-503.67960312,0.00041095,60]
[403025520,1769080252100,-500.0,0.00041095,60]
[403025521,1769080252111,-500.0,0.00041095,60]
[403025522,1769080252120,-500.0,0.00041095,60]
[403025523,1769080252130,-506.33570103,0.00041095,60]
[403025524,1769080252140,-500.0,0.00041095,120]
[403025525,1769080252150,-500.0,0.00041095,60]
[403025526,1769080252160,-500.0,0.00041095,60]
[403025527,1769080252169,-500.0,0.00041095,60]
[403025528,1769080252179,-500.0,0.00041095,60]
[403025529,1769080252189,-500.0,0.00041095,60]
[403025530,1769080252199,-500.0,0.00041095,60]
[403025531,1769080252208,-500.0,0.00041095,60]
[403025532,1769080252218,-500.0,0.00041095,60]
[403025533,1769080252228,-500.0,0.00041095,60]
[403025534,1769080252238,-500.0,0.00041095,60]
[403025535,1769080252247,-500.0,0.00041095,60]
[403025536,1769080252257,-500.0,0.00041095,60]
[403025537,1769080252267,-509.35481265,0.00041095,60]
[403025538,1769080252277,-500.0,0.00041095,60]
[403025539,1769080252287,-500.0,0.00041095,60]
[403025540,1769080252297,-500.0,0.00041095,60]
[403025541,1769080252307,-500.0,0.00041095,60]
[403025542,1769080252317,-500.0,0.00041095,60]
[403025543,1769080252326,-500.0,0.00041095,60]
[403025544,1769080252336,-500.0,0.00041095,60]
[403025545,1769080252345,-506.31517382,0.00041095,60]
[403025546,1769080252355,-278.80301294,0.00041095,60]
[403025547,1769080252365,-500.0,0.00041095,60]
[403025548,1769080252374,-497.92850253,0.00041095,60]
[403025549,1769080252385,-500.0,0.00041095,60]
[403025550,1769080252394,-500.0,0.00041095,60]
[403025551,1769080252404,-504.72682466,0.00041095,60]
[403025552,1769080252414,-737.89,0.00041095,60]
[403025553,1769080252425,-500.0,0.00041095,60]
[403025554,1769080252437,-506.75389145,0.00041095,60]
[403025555,1769080252447,-570.4245788,0.00041095,60]
[403025556,1769080252457,-500.0,0.00041095,60]
[403025557,1769080252467,-500.0,0.00041095,60]
[403025558,1769080252479,-556.39,0.00041095,60]
[403025559,1769080252489,-500.0,0.00041095,60]
[403025560,1769080252499,-500.0,0.00041095,60]
[403025561,1769080252509,-500.0,0.00041095,60]
[403025562,1769080252519,-500.0,0.00041095,60]
[403025563,1769080252528,-500.0,0.00041095,60]
[403025564,1769080252538,-500.0,0.00041095,60]
[403025565,1769080252547,-500.0,0.00041095,60]
[403025566,1769080252558,-500.0,0.00041095,60]
[403025567,1769080252567,-517.23813008,0.00041095,60]
[403025568,1769080252577,-500.0,0.00041095,60]
[403025569,1769080252587,-500.0,0.00041095,60]
[403025570,1769080252597,-500.0,0.00041095,60]
[403025571,1769080252606,-500.0,0.00041095,60]
[403025572,1769080252616,-500.0,0.00041095,60]
[403025573,1769080252626,-500.0,0.00041095,60]
[403025574,1769080252636,-500.0,0.00041095,60]
[403025575,1769080252645,-500.0,0.00041095,60]
[403025576,1769080252655,-510.94244991,0.00041095,60]
[403025577,1769080252665,-500.0,0.00041095,60]
[403025578,1769080252674,-500.0,0.00041095,60]
[403025579,1769080252684,-500.0,0.00041095,60]
[403025580,1769080252694,-500.0,0.00041095,60]
[403025581,1769080252703,-500.0,0.00041095,60]
[403025582,1769080252713,-500.0,0.00041095,60]
[403025583,1769080252723,-557.70720106,0.00041095,60]
[403025584,1769080252733,-500.0,0.00041095,60]
[403025585,1769080252742,-500.0,0.00041095,60]
[403025586,1769080252752,-500.0,0.00041095,60]
[403025587,1769080252761,-500.0,0.00041095,60]
[403025588,1769080252771,-500.0,0.00041095,60]
[403025589,1769080252780,-500.0,0.00041095,60]
[403025590,1769080252790,-500.0,0.00041095,60]
[403025591,1769080252799,-500.0,0.00041095,60]
[403025592,1769080252809,-500.0,0.00041095,60]
[403025593,1769080252819,-500.0,0.00041095,60]
[403025594,1769080252828,-500.0,0.00041095,60]
[403025595,1769080252838,-500.0,0.00041095,60]
[403025596,1769080252849,-500.0,0.00041095,60]
[403025597,1769080252859,-500.0,0.00041095,60]
[403025598,1769080252868,-500.0,0.00041095,60]
[403025599,1769080252878,-500.0,0.00041095,60]
[403025600,1769080252887,-500.0,0.00041095,60]
[403025601,1769080252897,-500.0,0.00041095,60]
[403025602,1769080252907,-500.0,0.00041095,60]
[403025603,1769080252917,-345.91718567,0.00041095,60]
[403025604,1769080252942,-154.08281433,0.00041095,60]
[403025605,1769080252952,-500.0,0.00041095,60]
[403025606,1769080252962,-500.0,0.00041095,60]
[403025607,1769080252971,-500.0,0.00041095,60]
[403025608,1769080252981,-500.0,0.00041095,60]
[403025609,1769080252991,-500.0,0.00041095,60]
[403025610,1769080253000,-500.0,0.00041095,60]
[403025611,1769080253010,-512.96588463,0.00041095,60]
[403025612,1769080253020,-500.0,0.00041095,60]
[403025613,1769080253029,-500.0,0.00041095,60]
[403025614,1769080253039,-500.0,0.00041095,60]
[403025615,1769080253048,-506.03695865,0.00041095,60]
[403025616,1769080253058,-510.8363644,0.00041095,60]
[403025617,1769080253068,-500.0,0.00041095,60]
[403025618,1769080253078,-500.0,0.00041095,60]
[403025619,1769080253088,-552.31728277,0.00041095,60]
[403025620,1769080253098,-502.58997632,0.00041095,60]
[403025621,1769080253108,-500.0,0.00041095,60]
[403025622,1769080253118,-500.0,0.00041095,60]
[403025623,1769080253128,-500.0,0.00041095,60]
[403025624,1769080253138,-500.0,0.00041095,60]
[403025625,1769080253148,-500.0,0.00041095,60]
[403025626,1769080253158,-501.54186494,0.00041095,60]
[403025627,1769080253168,-500.0,0.00041095,60]
[403025628,1769080253178,-500.0,0.00041095,60]
[403025629,1769080253188,-500.0,0.00041095,60]
[403025630,1769080253198,-500.0,0.00041095,60]
[403025631,1769080253207,-500.0,0.00041095,60]
[403025632,1769080253217,-500.0,0.00041095,60]
[403025633,1769080253227,-500.0,0.00041095,45]
[403025634,1769080253237,-500.0,0.00041095,60]
[403025635,1769080253247,-500.0,0.00041095,60]
[403025636,1769080253257,-500.0,0.00041095,120]
[403025637,1769080253268,-500.0,0.00041095,60]
[403025638,1769080253278,-500.0,0.00041095,60]
[403025639,1769080253288,-500.0,0.00041095,60]
[403025640,1769080253297,-500.0,0.00041095,60]
[403025641,1769080253307,-500.0,0.00041095,60]
[403025642,1769080253316,-500.0,0.00041095,60]
[403025643,1769080253326,-505.67092891,0.00041095,60]
[403025644,1769080253336,-546.05648826,0.00041095,60]
[403025645,1769080253346,-500.0,0.00041095,60]
[403025646,1769080253356,-500.0,0.00041095,60]
[403025647,1769080253366,-535.37198324,0.00041095,60]
[403025648,1769080253376,-500.0,0.00041095,30]
[403025649,1769080253689,-500.0,0.00041095,60]
[403025650,1769080253699,-500.0,0.00041095,60]
[403025651,1769080253709,-486.52177247,0.00041095,60]
[403025652,1769080253719,-500.0,0.00041095,60]
[403025653,1769080253728,-500.0,0.00041095,60]
[403025654,1769080253738,-500.0,0.00041095,60]
[403025655,1769080253747,-500.0,0.00041095,60]
[403025656,1769080253757,-500.0,0.00041095,60]
[403025657,1769080253767,-500.0,0.00041095,60]
[403025658,1769080253776,-500.0,0.00041095,60]
[403025659,1769080253786,-500.0,0.00041095,60]
[403025660,1769080253795,-500.0,0.00041095,60]
[403025661,1769080253805,-500.0,0.00041095,60]
[403025662,1769080253815,-511.71822747,0.00041095,60]
[403025663,1769080253824,-500.0,0.00041095,60]
[403025664,1769080253834,-500.0,0.00041095,60]
[403025665,1769080253844,-500.0,0.00041095,60]
[403025666,1769080253853,-500.0,0.00041095,60]
[403025667,1769080253864,-500.0,0.00041095,60]
[403025668,1769080253874,-500.0,0.00041095,60]
[403025669,1769080253884,-500.0,0.00041095,60]
[403025670,1769080253893,-500.0,0.00041095,60]
[403025671,1769080253903,-575.91863235,0.00041095,60]
[403025672,1769080253912,-503.43930474,0.00041095,60]
[403025673,1769080253922,-500.0,0.00041095,60]
[403025674,1769080253932,-500.0,0.00041095,60]
[403025675,1769080253941,-500.0,0.00041095,60]
[403025676,1769080253951,-500.0,0.00041095,60]
[403025677,1769080253961,-500.0,0.00041095,60]
[403025678,1769080253971,-500.0,0.00041095,60]
[403025679,1769080253980,-500.0,0.00041095,60]
[403025680,1769080253989,-500.0,0.00041095,60]
[403025681,1769080253998,-500.0,0.00041095,60]
[403025682,1769080254008,-500.0,0.00041095,60]
[403025683,1769080254018,-220.66010229,0.00041095,60]
[403025684,1769080254027,-500.0,0.00041095,60]
[403025685,1769080254037,-500.0,0.00041095,60]
[403025686,1769080254046,-500.0,0.00041095,60]
[403025687,1769080254056,-507.75175292,0.00041095,60]
[403025688,1769080254065,-513.13950219,0.00041095,60]
[403025689,1769080254075,-500.0,0.00041095,60]
[403025690,1769080254085,-500.0,0.00041095,60]
[403025691,1769080254095,-549.55,0.00041095,60]
[403025692,1769080254104,-563.61,0.00041095,30]
[403025693,1769080254114,-500.0,0.00041095,60]
[403025694,1769080254123,-500.0,0.00041095,60]
[403025695,1769080254132,-500.0,0.00041095,60]
[403025696,1769080254142,-500.0,0.00041095,60]
[403025697,1769080254151,-500.0,0.00041095,60]
[403025698,1769080254160,-500.0,0.00041095,60]
[403025699,1769080254170,-505.38905186,0.00041095,60]
[403025700,1769080254179,-500.0,0.00041095,60]
[403025701,1769080254188,-500.0,0.00041095,60]
[403025702,1769080254198,-500.0,0.00041095,60]
[403025703,1769080254207,-500.0,0.00041095,60]
[403025704,1769080254216,-500.0,0.00041095,60]
[403025705,1769080254226,-500.0,0.00041095,60]
[403025706,1769080254236,-500.0,0.00041095,60]
[403025707,1769080254245,-500.0,0.00041095,60]
[403025708,1769080254255,-500.0,0.00041095,60]
[403025709,1769080254264,-500.0,0.00041095,60]
[403025710,1769080254273,-500.0,0.00041095,60]
[403025711,1769080254285,-506.54598695,0.00041095,60]
[403025712,1769080254295,-577.46,0.00041095,60]
[403025713,1769080254304,-500.0,0.00041095,60]
[403025714,1769080254313,-500.0,0.00041095,60]
[403025715,1769080254322,-500.0,0.00041095,60]
[403025716,1769080254332,-500.0,0.00041095,60]
[403025717,1769080254341,-500.0,0.00041095,60]
[403025718,1769080254350,-506.13,0.00041095,60]
[403025719,1769080254359,-500.0,0.00041095,60]
[403025720,1769080254369,-500.0,0.00041095,60]
[403025721,1769080254378,-500.0,0.00041095,60]
[403025722,1769080254387,-369.75517708,0.00041095,60]
[403025723,1769080254467,-130.24482292,0.00041095,60]
[403025724,1769080254479,-500.0,0.00041095,60]
[403025725,1769080254488,-556.6,0.00041095,60]
[403025726,1769080254499,-500.0,0.00041095,60]
[403025727,1769080254509,-500.0,0.00041095,60]
[403025728,1769080254518,-573.40071422,0.00041095,60]
[403025729,1769080254527,-500.0,0.00041095,60]
[403025730,1769080254537,-500.0,0.00041095,60]
[403025731,1769080254546,-500.0,0.00041095,60]
[403025732,1769080254555,-500.0,0.00041095,60]
[403025733,1769080254565,-500.0,0.00041095,60]